Cogmind - Beta 14 @@@ ROGUE MODE // 2024.10.25 @ 20:42:22 Player: KURIIRI Result: Destroyed 0b10! Performance ------------- Evolutions (9) 4500 Regions Visited (14) 2800 Robots Destroyed (0) 0 Value Destroyed (110) 110 Prototype IDs (37) 740 Alien Tech Used (6) 1200 Bonus (20869) 20869 TOTAL SCORE: 30219 Bonus ------- Pacifist 10869 Met Sigix 2000 Escaped with Sigix 5000 Win 3000 Cogmind --------- Core Integrity 1535/1600 Matter 250/300 Energy 149/150 System Corruption 1% Temperature Cool (3) Movement Flying (24) Location Tau Ceti IV Orbit Parts ------- > --- POWER (2) -------- Micro Antimatter Reactor > --- PROPULSION (7) --- Impulse Thruster Improved Diametric Drive Experimental Q-thruster > --- UTILITY (14) ----- Small Storage Unit Machine Analyzer Advanced Visual Processing Unit Advanced Sensor Array Experimental Signal Interpreter Long-range Terrain Scanner Advanced Terrain Scan Processor Improved Reaction Control System Experimental Core Shielding Experimental Core Shielding Advanced Hacking Suite Advanced System Shield > --- WEAPON (2) ------- (None) > --- INVENTORY (8) ---- Light Quantum Reactor Experimental Power Amplifier Advanced ECM Suite Centrium Light Armor Plating Terrabomb Power Sword Sigix Containment Pod Peak State ------------ > --- POWER ------------ Matter Drive > --- PROPULSION ------- Impulse Thruster Field Propulsion Array Q-thruster Q-thruster Improved Diametric Drive > --- UTILITY ---------- Large Storage Unit Advanced Visual Processing Unit Advanced Sensor Array Advanced Signal Interpreter Advanced Terrain Scan Processor Phase Armor Improved Hacking Suite Advanced Hacking Suite Advanced Hacking Suite Advanced System Shield > --- WEAPON ----------- Power Sword > --- INVENTORY -------- Light Fission Core Particle Reactor Micro Antimatter Reactor Micro Antimatter Reactor Micro Antimatter Reactor Cooled VTOL Module Impulse Thruster Q-thruster Improved Diametric Drive Small Storage Unit Improved Reaction Control System Improved System Shield Improved Field Recycling Unit Terrabomb [Rating: 157] Favorites ----------- Power Light Fission Core Engine Light Ion Engine Power Core Light Fission Core Reactor Micro Antimatter Reactor Propulsion Q-thruster Flight Unit Q-thruster Utility Advanced Terrain Scan Processor Device Advanced Sensor Array Storage Small Storage Unit Processor Advanced Terrain Scan Processor Hackware Advanced Hacking Suite Protection Experimental Core Shielding Artifact Phase Armor Weapon Power Sword Slashing Weapon Power Sword Build | -11 -10 -9 -9 -8 -7 -6 -5 -5 -4 -3 -3 -2 -2 -1 ------- Run | Yrd Mat Mat Min Mat Fac Fac Fac Ext Fac Res Qua Res Tes Acc Slots Evolved 18 | . . 2 . 2 2 2 2 . 2 2 . 2 . 2 Power 1 | . . . . . . . . . 1 . . . . . Propulsion 5 | . . . . 1 . 1 1 . 1 . . 1 . . Utility 12 | . . 2 . 1 2 1 1 . . 2 . 1 . 2 Weapon . | . . . . . . . . . . . . . . . Parts Attached 182 | . 5 6 2 5 18 41 20 . 7 15 12 20 22 9 Power 24 | . . . . . 3 3 1 . 1 2 4 5 3 2 Engine 3 | . . . . . 2 1 . . . . . . . . Core 9 | . . . . . 1 2 1 . 1 . 2 2 . . Reactor 12 | . . . . . . . . . . 2 2 3 3 2 Propulsion 37 | . . 2 1 2 4 5 5 . 2 3 1 7 5 . Treads . | . . . . . . . . . . . . . . . Leg . | . . . . . . . . . . . . . . . Wheel . | . . . . . . . . . . . . . . . Hover . | . . . . . . . . . . . . . . . Flight 37 | . . 2 1 2 4 5 5 . 2 3 1 7 5 . Utility 103 | . 5 4 1 3 10 24 13 . 4 6 6 8 14 5 Device 64 | . 4 3 . 1 7 22 10 . 4 . 3 4 4 2 Storage 6 | . . 1 . . . . . . . 1 . . 3 1 Processor 9 | . 1 . . 1 2 . 1 . . . . 1 2 1 Hackware 10 | . . . 1 . 1 2 2 . . 4 . . . . Protection 12 | . . . . 1 . . . . . 1 1 3 5 1 Artifact 2 | . . . . . . . . . . . 2 . . . Weapon 18 | . . . . . 1 9 1 . . 4 1 . . 2 Energy Gun . | . . . . . . . . . . . . . . . Energy Cannon . | . . . . . . . . . . . . . . . Ballistic Gun . | . . . . . . . . . . . . . . . Ballistic Cannon . | . . . . . . . . . . . . . . . Launcher . | . . . . . . . . . . . . . . . Special Weapon . | . . . . . . . . . . . . . . . Impact Weapon . | . . . . . . . . . . . . . . . Slashing Weapon 18 | . . . . . 1 9 1 . . 4 1 . . 2 Piercing Weapon . | . . . . . . . . . . . . . . . Special Melee Weapon . | . . . . . . . . . . . . . . . Unidentified Prototypes 22 | . . 1 . . 3 1 . . . 1 6 2 8 . Parts Lost 24 | . . . . 2 1 4 . . 2 3 . 6 4 2 Power 4 | . . . . . . 1 . . 1 . . 2 . . Propulsion 10 | . . . . 1 . 1 . . . 2 . 2 3 1 Utility 10 | . . . . 1 1 2 . . 1 1 . 2 1 1 Weapon . | . . . . . . . . . . . . . . . Highest Loss Streak 6 | . . . . 2 1 3 . . 2 2 . 6 2 1 To Critical Strikes . | . . . . . . . . . . . . . . . Average Slot Usage (%) 79 | . 21 28 65 70 86 87 88 88 88 84 87 85 73 71 Core 2 | . . . . . . 5 4 5 9 . 3 3 . . Reactor 1 | . . . . . . . . . . 3 4 3 4 4 Flight 20 | . . 6 21 25 22 23 23 23 25 23 23 21 15 13 Device 13 | . 13 8 22 16 13 15 17 17 14 10 8 12 10 12 Storage 5 | . . 1 11 9 7 6 5 5 5 4 4 4 4 4 Processor 15 | . 8 11 3 7 21 20 17 17 15 14 14 13 9 15 Hackware 11 | . . . 7 9 7 10 11 11 10 18 19 16 13 11 Protection 2 | . . . . 4 1 . . . . 2 2 3 10 8 Slashing Weapon 3 | . . . . . 5 3 4 5 5 3 3 4 3 3 Peak Build Rating 157 | . 2 9 15 21 45 60 86 86 97 108 157 143 154 131 Average Rating 76 | . 1 3 12 19 36 52 70 86 94 103 121 132 137 118 On Entrance 56 | . . 1 9 15 18 42 60 86 86 90 106 116 96 115 Naked Turns 18 | . 18 . . . . . . . . . . . . . Heaviest Build 79 | . 2 7 7 11 14 29 29 18 26 45 79 55 66 57 Greatest Support 54 | 3 3 9 11 15 17 23 33 34 44 44 45 54 51 25 Greatest Overweight (x) 26 | . . . . 2 . 1 1 . . 1 26 1 1 2 Average Overweight (x) . | . . . . . . . . . . . . . . . Largest Inventory Capacity 15 | 5 5 8 8 8 8 8 8 8 8 15 15 15 15 15 Average Capacity 9 | 5 5 5 8 8 8 8 8 8 8 13 15 15 15 10 Most Carried 15 | . 5 5 8 8 8 8 8 8 7 8 15 15 15 14 Average Carried 8 | . 3 4 7 7 7 7 6 8 5 6 12 13 14 9 Final Capacity 15 | 5 5 8 8 8 8 8 8 8 8 15 15 15 15 8 Final Carried 15 | . 5 5 8 8 8 7 8 8 5 8 15 15 15 8 Class Distribution -------------------- 41% | Hacker-Ninja 14% | Scout 14% | Hacker-Assassin 13% | Hacker-Scout 13% | Mutant Dominant Class ---------------- Mutant | -10/Materials Mutant | -9/Materials Mutant | -9/Mines Scout | -8/Materials Scout | -7/Factory Hacker-Scout | -6/Factory Hacker-Ninja | -5/Factory Hacker-Ninja | -5/Extension Hacker-Ninja | -4/Factory Hacker-Ninja | -3/Research Hacker-Ninja | -3/Quarantine Hacker-Ninja | -2/Research Hacker-Scout | -2/Testing Hacker-Assassin | -1/Access Resources | -11 -10 -9 -9 -8 -7 -6 -5 -5 -4 -3 -3 -2 -2 -1 ----------- Run | Yrd Mat Mat Min Mat Fac Fac Fac Ext Fac Res Qua Res Tes Acc Matter Collected 755 | 173 . 114 38 10 28 . . . . 150 151 24 . 67 Remotely . | . . . . . . . . . . . . . . . Salvage Created . | . . . . . . . . . . . . . . . Parts . | . . . . . . . . . . . . . . . Haulers Intercepted . | . . . . . . . . . . . . . . . Recyclers Shooed . | . . . . . . . . . . . . . . . Parts Field Recycled 67 | . . . . . . 21 32 . . . . 3 6 5 Retrieved Matter 1394 | . . . . . . 513 507 . . . . 94 192 88 Parts Self-Destructed . | . . . . . . . . . . . . . . . Prevented . | . . . . . . . . . . . . . . . Kills | -11 -10 -9 -9 -8 -7 -6 -5 -5 -4 -3 -3 -2 -2 -1 ------- Run | Yrd Mat Mat Min Mat Fac Fac Fac Ext Fac Res Qua Res Tes Acc Combat Hostiles Destroyed . | . . . . . . . . . . . . . . . Classes Destroyed . | . . . . . . . . . . . . . . . Best Kill Streak . | . . . . . . . . . . . . . . . Combat Bots Only . | . . . . . . . . . . . . . . . Max Kills in Single Turn . | . . . . . . . . . . . . . . . Gunslinging . | . . . . . . . . . . . . . . . Exploded . | . . . . . . . . . . . . . . . Melee . | . . . . . . . . . . . . . . . Uniques/NPCs Destroyed . | . . . . . . . . . . . . . . . Combat | -11 -10 -9 -9 -8 -7 -6 -5 -5 -4 -3 -3 -2 -2 -1 -------- Run | Yrd Mat Mat Min Mat Fac Fac Fac Ext Fac Res Qua Res Tes Acc Hostile Shots Fired 479 | . 15 8 10 48 25 91 17 13 50 14 16 82 70 20 Missed 256 | . 6 4 5 31 19 40 11 8 28 6 10 46 29 13 Damage Taken 4280 | . 77 66 39 189 148 688 90 139 381 218 165 1041 881 158 Core 1121 | . 77 34 39 61 11 248 18 72 101 57 68 144 126 65 Absorbed by Shields . | . . . . . . . . . . . . . . . Redirected to Shielding 122 | . . . . . . . . . . . . . 80 42 Regen/Repaired (Parts) 535 | . . . . . . 26 124 . . . 56 25 304 . Core Remaining (%) 85 | 100 69 . 81 88 98 70 . 91 91 . 80 . 81 95 Volleys Fired . | . . . . . . . . . . . . . . . Largest . | . . . . . . . . . . . . . . . Hottest . | . . . . . . . . . . . . . . . Shots Fired . | . . . . . . . . . . . . . . . Gun . | . . . . . . . . . . . . . . . Cannon . | . . . . . . . . . . . . . . . Launcher . | . . . . . . . . . . . . . . . Special . | . . . . . . . . . . . . . . . Kinetic . | . . . . . . . . . . . . . . . Thermal . | . . . . . . . . . . . . . . . Explosive . | . . . . . . . . . . . . . . . Electromagnetic . | . . . . . . . . . . . . . . . Robot Hit Streak . | . . . . . . . . . . . . . . . Robot Miss Streak . | . . . . . . . . . . . . . . . Penetration Max . | . . . . . . . . . . . . . . . Secondary Targets . | . . . . . . . . . . . . . . . Shots Hit Robots . | . . . . . . . . . . . . . . . Core Hits . | . . . . . . . . . . . . . . . Critical Kills . | . . . . . . . . . . . . . . . Critical Parts Destroyed . | . . . . . . . . . . . . . . . Critical Strikes . | . . . . . . . . . . . . . . . Melee Attacks 150 | . . . . . 13 27 19 2 18 18 13 19 12 9 Impact . | . . . . . . . . . . . . . . . Slashing 150 | . . . . . 13 27 19 2 18 18 13 19 12 9 Piercing . | . . . . . . . . . . . . . . . Sneak Attacks . | . . . . . . . . . . . . . . . Combat Hostiles . | . . . . . . . . . . . . . . . Follow-up Attacks . | . . . . . . . . . . . . . . . Damage Inflicted 2 | . 2 . . . . . . . . . . . . . Guns . | . . . . . . . . . . . . . . . Cannons . | . . . . . . . . . . . . . . . Explosions . | . . . . . . . . . . . . . . . Melee . | . . . . . . . . . . . . . . . Ramming 2 | . 2 . . . . . . . . . . . . . Kinetic . | . . . . . . . . . . . . . . . Thermal . | . . . . . . . . . . . . . . . Explosive . | . . . . . . . . . . . . . . . Electromagnetic . | . . . . . . . . . . . . . . . Impact . | . . . . . . . . . . . . . . . Slashing . | . . . . . . . . . . . . . . . Piercing . | . . . . . . . . . . . . . . . Highest Corruption 8 | . 1 . . . 1 8 . . . . 1 2 7 1 Average Corruption 3 | . 1 . . . 1 5 . . . . 1 1 3 1 Corruption Purged 1 | . . . . . 1 . . . . . . . . . Corruption Blocked . | . . . . . . . . . . . . . . . Effects 49 | . . . . . 5 31 . . . . . 4 9 . Message Errors 15 | . . . . . 2 8 . . . . . 1 4 . Matter Fused 12 | . . . . . 1 9 . . . . . 1 1 . Heat Flow Errors 4 | . . . . . . 4 . . . . . . . . Energy Discharges 6 | . . . . . 1 5 . . . . . . . . Parts Rejected 2 | . . . . . . 2 . . . . . . . . Data Loss (minor) 6 | . . . . . 1 2 . . . . . . 3 . Data Loss (major) 2 | . . . . . . 1 . . . . . 1 . . Alerts 2 | . . . . . . . . . . . . 1 1 . Overload Shots . | . . . . . . . . . . . . . . . Overflow Damage . | . . . . . . . . . . . . . . . Projectiles . | . . . . . . . . . . . . . . . Explosions . | . . . . . . . . . . . . . . . Melee . | . . . . . . . . . . . . . . . Knockbacks . | . . . . . . . . . . . . . . . Impact . | . . . . . . . . . . . . . . . Kinetic . | . . . . . . . . . . . . . . . Secondary . | . . . . . . . . . . . . . . . Self-Inflicted Damage 1 | . 1 . . . . . . . . . . . . . Shots . | . . . . . . . . . . . . . . . Rammed 1 | . 1 . . . . . . . . . . . . . Targets Rammed 1 | . 1 . . . . . . . . . . . . . Kicked . | . . . . . . . . . . . . . . . Crushed . | . . . . . . . . . . . . . . . Highest Temperature 339 | . . . . 10 . 251 . 339 120 32 307 307 13 . Average Temperature 77 | . . . . 10 . 88 . 333 30 13 93 108 13 . Received Heat Transfer 756 | . 6 18 . 54 18 174 18 351 9 45 9 9 27 18 Effects 3 | . . . . . . . . . . . . 3 . . Energy Bleed 3 | . . . . . . . . . . . . 3 . . Siege Activations . | . . . . . . . . . . . . . . . Robots Corrupted . | . . . . . . . . . . . . . . . Combat Hostiles . | . . . . . . . . . . . . . . . Parts Fried . | . . . . . . . . . . . . . . . Impact Corruptions . | . . . . . . . . . . . . . . . Robots Melted . | . . . . . . . . . . . . . . . Combat Hostiles . | . . . . . . . . . . . . . . . Parts Melted . | . . . . . . . . . . . . . . . Heat Transferred . | . . . . . . . . . . . . . . . Parts Sabotaged . | . . . . . . . . . . . . . . . Parts Stolen . | . . . . . . . . . . . . . . . Parts Stripped . | . . . . . . . . . . . . . . . Power Chain Reactions . | . . . . . . . . . . . . . . . Alert | -11 -10 -9 -9 -8 -7 -6 -5 -5 -4 -3 -3 -2 -2 -1 ------- Run | Yrd Mat Mat Min Mat Fac Fac Fac Ext Fac Res Qua Res Tes Acc Peak Influence 651 | . 95 214 208 266 338 353 232 91 651 434 213 152 379 315 Initial 255 | . . 39 83 80 120 86 131 44 44 255 159 75 67 164 Average 173 | . 78 65 196 113 152 207 93 61 437 294 117 69 193 204 Maximum Alert Level 2 | . . 1 1 1 1 1 1 . 2 2 1 . 1 1 Low Security (%) 62 | 100 100 90 11 92 81 48 82 100 1 . 96 100 74 48 Level 1 32 | . . 9 88 7 18 51 17 . 46 83 3 . 25 51 Level 2 4 | . . . . . . . . . 51 16 . . . . Level 3 . | . . . . . . . . . . . . . . . Level 4 . | . . . . . . . . . . . . . . . Level 5 . | . . . . . . . . . . . . . . . High Security . | . . . . . . . . . . . . . . . Max Security . | . . . . . . . . . . . . . . . Squads Dispatched 71 | . 3 3 1 1 17 13 6 . 7 1 3 9 5 2 Investigation 50 | . 2 3 1 . 15 10 4 . 6 . 1 5 2 1 Extermination 9 | . . . . . 1 1 1 . 1 . 1 1 2 1 Reinforcement 12 | . 1 . . 1 1 2 1 . . 1 1 3 1 . Assault . | . . . . . . . . . . . . . . . Garrison . | . . . . . . . . . . . . . . . Intercept . | . . . . . . . . . . . . . . . Searches Triggered . | . . . . . . . . . . . . . . . Construction Impeded . | . . . . . . . . . . . . . . . Haulers Reinforced . | . . . . . . . . . . . . . . . Active Scanning Responses . | . . . . . . . . . . . . . . . Cargo Convoy Interrupts . | . . . . . . . . . . . . . . . Stealth | -11 -10 -9 -9 -8 -7 -6 -5 -5 -4 -3 -3 -2 -2 -1 --------- Run | Yrd Mat Mat Min Mat Fac Fac Fac Ext Fac Res Qua Res Tes Acc Distress Signals 26 | . 1 . . 1 . 4 7 . 3 3 3 2 2 . Communications Jammed . | . . . . . . . . . . . . . . . Distress Signals . | . . . . . . . . . . . . . . . Times Spotted 317 | . 10 7 7 23 31 60 25 5 25 18 18 34 40 14 Peak Tracking Total 23 | . 4 6 7 15 10 10 9 5 6 8 8 22 23 8 Tactical Retreats 68 | . 2 3 2 1 7 19 9 . 5 5 3 5 5 2 Traps | -11 -10 -9 -9 -8 -7 -6 -5 -5 -4 -3 -3 -2 -2 -1 ------- Run | Yrd Mat Mat Min Mat Fac Fac Fac Ext Fac Res Qua Res Tes Acc Traps Triggered 12 | . 1 . . . 4 2 . . . 1 . 4 . . Indirectly . | . . . . . . . . . . . . . . . Trap Hack Attempts . | . . . . . . . . . . . . . . . Triggered . | . . . . . . . . . . . . . . . Disarmed . | . . . . . . . . . . . . . . . Reprogrammed 4 | . . . . . . 4 . . . . . . . . Reused 1 | . . . . . . 1 . . . . . . . . Traps Extracted . | . . . . . . . . . . . . . . . Installed . | . . . . . . . . . . . . . . . Triggered 1 | . . . . . . 1 . . . . . . . . Machines | -11 -10 -9 -9 -8 -7 -6 -5 -5 -4 -3 -3 -2 -2 -1 ---------- Run | Yrd Mat Mat Min Mat Fac Fac Fac Ext Fac Res Qua Res Tes Acc Machines Disabled 11 | . . . . . . . 1 1 . . 6 . 3 . Max in Single Turn 1 | . . . . . . . 1 1 . . 1 . 1 . Garrison Access 15 | . . . . . . 3 2 . 3 4 . 2 . 1 Machines Repaired . | . . . . . . . . . . . . . . . Machines Dismantled . | . . . . . . . . . . . . . . . Machines Sabotaged . | . . . . . . . . . . . . . . . Overloaded Fab Kills . | . . . . . . . . . . . . . . . Hacking | -11 -10 -9 -9 -8 -7 -6 -5 -5 -4 -3 -3 -2 -2 -1 --------- Run | Yrd Mat Mat Min Mat Fac Fac Fac Ext Fac Res Qua Res Tes Acc Machines Accessed 123 | . 6 6 2 2 21 17 11 1 10 8 13 13 9 4 Terminals 79 | . 6 5 . 2 17 7 6 1 5 3 12 6 6 3 Fabricators 13 | . . . . . 1 5 2 . . . . 4 1 . Repair Stations 6 | . . . . . . 2 1 . . . 1 1 1 . Recycling Units . | . . . . . . . . . . . . . . . Scanalyzers 6 | . . 1 . . 1 . . . 2 1 . . 1 . Garrison Access 17 | . . . . . 2 3 2 . 3 4 . 2 . 1 Total Hacks 356 | . 20 24 2 5 61 55 37 1 22 14 36 39 31 9 Successful 202 | . 5 16 2 5 28 33 24 1 15 8 23 25 12 5 Failed 153 | . 15 8 . . 33 22 13 . 7 6 12 14 19 4 Catastrophic 21 | . 1 3 . . 5 1 1 . 3 . 1 1 3 2 Database Lockouts 1 | . . . . . . . . . . . 1 . . . Manual 177 | . 15 12 . 4 41 17 19 . 11 4 23 13 14 4 Terminals 248 | . 20 18 . 5 53 28 22 1 11 7 34 22 20 7 Fabricators 37 | . . . . . 3 13 5 . . . . 12 4 . Repair Stations 22 | . . . . . . 8 7 . . . 2 2 3 . Recycling Units . | . . . . . . . . . . . . . . . Scanalyzers 19 | . . 6 . . 1 . . . 6 2 . . 4 . Garrison Access 28 | . . . . . 4 6 3 . 5 5 . 3 . 2 Terminal Hacks 79 | . 3 5 2 2 12 12 7 1 2 2 17 7 4 3 Record 5 | . . . . . . . . . . 1 4 . . . Part Schematic 12 | . . . . 1 1 4 2 . . . 3 . 1 . Robot Schematic 1 | . . . . . 1 . . . . . . . . . Robot Analysis 1 | . . . . . . 1 . . . . . . . . Prototype ID Bank 9 | . 2 1 . . 2 2 . . . . 2 . . . Open Door 6 | . . . 2 . . . . 1 . 1 1 . . 1 Level Access Points 2 | . . . . . . . 1 . . . . 1 . . Branch Access Points 3 | . . 1 . . 1 . 1 . . . . . . . Machine Index 4 | . . . . . . . . . 1 . 1 1 1 . Recycling Unit Index 1 | . . . . . . . . . . . . . . 1 Scanalyzer Index 1 | . . . . . . . 1 . . . . . . . Garrison Index 3 | . . . . . . 1 1 . . . . . . 1 Alert Level 6 | . . . . . 1 1 . . 1 . . 1 2 . Unreport Threat 6 | . . 1 . . 1 1 1 . . . 1 1 . . Locate Traps 6 | . 1 . . . 3 1 . . . . . 1 . . Reprogram Traps 1 | . . . . . . 1 . . . . . . . . Security Status 1 | . . . . . . . . . . . 1 . . . Recall Investigation 2 | . . . . . . . . . . . . 2 . . Zone Layout 9 | . . 2 . 1 2 . . . . . 4 . . . Fabricator Hacks 25 | . . . . . 2 9 4 . . . . 8 2 . Load Schematic 13 | . . . . . 1 5 2 . . . . 4 1 . Build 12 | . . . . . 1 4 2 . . . . 4 1 . Repair Station Hacks 15 | . . . . . . 3 6 . . . 2 2 2 . Scan Component 8 | . . . . . . 2 3 . . . 1 1 1 . Repair 7 | . . . . . . 1 3 . . . 1 1 1 . Recycling Unit Hacks . | . . . . . . . . . . . . . . . Scanalyzer 12 | . . 6 . . . . . . 4 1 . . 1 . Insert Component 6 | . . 3 . . . . . . 1 1 . . 1 . Analyze 6 | . . 3 . . . . . . 3 . . . . . Garrison Access Hacks 12 | . . . . . . 3 2 . 1 4 . 2 . . Seal Access 12 | . . . . . . 3 2 . 1 4 . 2 . . Unauthorized Hacks 59 | . 2 5 . 3 14 6 5 . 8 1 4 6 3 2 Terminals 52 | . 2 5 . 3 12 6 5 . 4 1 4 6 3 1 Assimilate 11 | . . 1 . . 3 1 2 . 1 . 1 1 1 . Botnet 38 | . 2 4 . 2 8 5 3 . 3 1 3 4 2 1 Operators 3 | . . . . 1 1 . . . . . . 1 . . Fabricators . | . . . . . . . . . . . . . . . Repair Stations . | . . . . . . . . . . . . . . . Recycling Units . | . . . . . . . . . . . . . . . Scanalyzers 3 | . . . . . 1 . . . 2 . . . . . Extract 3 | . . . . . 1 . . . 2 . . . . . Garrison Access 4 | . . . . . 1 . . . 2 . . . . 1 Watchers 1 | . . . . . 1 . . . . . . . . . Jam 3 | . . . . . . . . . 2 . . . . 1 Data Cores Recovered . | . . . . . . . . . . . . . . . Used . | . . . . . . . . . . . . . . . Hacking Detections 95 | . 5 5 . 2 19 14 8 . 7 4 8 11 8 4 Full Trace Events 47 | . 5 4 . . 14 10 4 . 2 . 1 5 2 . Feedback Events 3 | . 1 . . . 2 . . . . . . . . . Corruption 2 | . 1 . . . 1 . . . . . . . . . Hackware Fried 1 | . . . . . 1 . . . . . . . . . Feedback Blocked . | . . . . . . . . . . . . . . . Robot Schematics Acquired 1 | . . . . . 1 . . . . . . . . . Robots Built . | . . . . . . . . . . . . . . . Authchips . | . . . . . . . . . . . . . . . Time . | . . . . . . . . . . . . . . . Total Robot Build Rating . | . . . . . . . . . . . . . . . Part Schematics Acquired 35 | . . 3 . 1 2 4 2 . 19 . 3 . 1 . Parts Built 15 | . . . . . 1 7 2 . . . . 4 1 . Authchips . | . . . . . . . . . . . . . . . Time 788 | . . . . . 47 236 159 . . . . 284 62 . Total Part Build Rating 88 | . . . . . 5 35 12 . . . . 29 7 . Parts Repaired 7 | . . . . . . 1 3 . . . 1 1 1 . Time 314 | . . . . . . 30 164 . . . 16 68 36 . Parts Recycled . | . . . . . . . . . . . . . . . Recycled Matter . | . . . . . . . . . . . . . . . Retrieved Matter . | . . . . . . . . . . . . . . . Retrieved Components . | . . . . . . . . . . . . . . . Parts Scanalyzed 5 | . . 3 . . . . . . 1 . . . 1 . Part Schematics Acquired 4 | . . 3 . . . . . . 1 . . . . . Parts Damaged . | . . . . . . . . . . . . . . . Bothacking | -11 -10 -9 -9 -8 -7 -6 -5 -5 -4 -3 -3 -2 -2 -1 ------------ Run | Yrd Mat Mat Min Mat Fac Fac Fac Ext Fac Res Qua Res Tes Acc Used RIF Installer . | . . . . . . . . . . . . . . . Robots Hacked . | . . . . . . . . . . . . . . . Non-combat . | . . . . . . . . . . . . . . . Combat . | . . . . . . . . . . . . . . . Robot Hacks Applied . | . . . . . . . . . . . . . . . Relay Couplers Released . | . . . . . . . . . . . . . . . Fabnet Peak Effective % . | . . . . . . . . . . . . . . . Robots Rewired . | . . . . . . . . . . . . . . . Allies Hacked 1 | . . . . . . . . . . . . . 1 . Hacks Repelled . | . . . . . . . . . . . . . . . Allies | -11 -10 -9 -9 -8 -7 -6 -5 -5 -4 -3 -3 -2 -2 -1 -------- Run | Yrd Mat Mat Min Mat Fac Fac Fac Ext Fac Res Qua Res Tes Acc Total Allies 10 | . . 1 . . 2 1 2 . 1 . 1 1 1 . Largest Group 2 | . . 1 1 . 2 1 1 . 1 . 1 1 1 . Highest-Rated Group 45 | . . 10 10 . 36 26 26 . 45 . 45 45 45 . Highest-Rated Ally 45 | . . 10 10 . 26 26 26 . 45 . 45 45 45 . Total Orders . | . . . . . . . . . . . . . . . Ally Attacks . | . . . . . . . . . . . . . . . Total Damage . | . . . . . . . . . . . . . . . Kills . | . . . . . . . . . . . . . . . Allies Corrupted . | . . . . . . . . . . . . . . . Allies Melted . | . . . . . . . . . . . . . . . Intel | -11 -10 -9 -9 -8 -7 -6 -5 -5 -4 -3 -3 -2 -2 -1 ------- Run | Yrd Mat Mat Min Mat Fac Fac Fac Ext Fac Res Qua Res Tes Acc Robot Analysis Total 1 | . . . . . . 1 . . . . . . . . Derelict Logs Recovered 1 | . . . 1 . . . . . . . . . . . Drone Launches . | . . . . . . . . . . . . . . . Drone Recoveries . | . . . . . . . . . . . . . . . Exploration | -11 -10 -9 -9 -8 -7 -6 -5 -5 -4 -3 -3 -2 -2 -1 ------------- Run | Yrd Mat Mat Min Mat Fac Fac Fac Ext Fac Res Qua Res Tes Acc Turns Passed 8677 | 18 326 266 351 95 918 1607 1240 86 504 717 674 751 542 582 Spaces Moved 13349 | 36 316 359 453 188 1740 2543 1648 255 907 1129 1057 1187 1048 483 Core 477 | 36 316 113 . 7 . . . . . . 5 . . . Treads . | . . . . . . . . . . . . . . . Legs . | . . . . . . . . . . . . . . . Wheels . | . . . . . . . . . . . . . . . Hover . | . . . . . . . . . . . . . . . Flight 12872 | . . 246 453 181 1740 2543 1648 255 907 1129 1052 1187 1048 483 Fastest Speed 21 | 50 50 34 34 30 30 28 26 29 27 25 25 23 21 24 Average Speed 33 | 50 50 42 34 37 31 32 33 31 28 29 32 33 28 64 Slowest Speed 1350 | 50 50 50 37 150 37 100 107 32 34 104 1350 105 108 184 Overloaded Moves . | . . . . . . . . . . . . . . . Propulsion Burnouts . | . . . . . . . . . . . . . . . Robots Hopped 154 | . . 5 9 13 29 36 6 . 4 10 10 8 21 3 Cave-ins Triggered . | . . . . . . . . . . . . . . . Teleports 2 | . . . . . . . . . . . 2 . . . Exploration Rate (%) 46 | 4 65 41 76 36 64 60 43 35 32 39 83 34 71 14 Regions Visited 14 Branch Regions 4 Pre-discovered Areas . | . . . . . . . . . . . . . . . Known Exits Taken 11 | . 1 1 . . 1 1 1 1 1 1 1 1 1 . Unknown Exits Taken 3 | 1 . . 1 1 . . . . . . . . . . Scrap Searched . | . . . . . . . . . . . . . . . Spaces Dug 135 | . . . . . 13 27 18 1 18 17 5 19 9 8 Terrain Destroyed 135 | . . . . . 13 27 18 1 18 17 5 19 9 8 Melee 135 | . . . . . 13 27 18 1 18 17 5 19 9 8 Projectile . | . . . . . . . . . . . . . . . AOE . | . . . . . . . . . . . . . . . Terrain Rammed . | . . . . . . . . . . . . . . . Walls Destroyed . | . . . . . . . . . . . . . . . Machines Disabled . | . . . . . . . . . . . . . . . Actions | -11 -10 -9 -9 -8 -7 -6 -5 -5 -4 -3 -3 -2 -2 -1 --------- Run | Yrd Mat Mat Min Mat Fac Fac Fac Ext Fac Res Qua Res Tes Acc Total 17117 | 35 482 467 638 200 2055 3234 2301 256 1122 1478 1362 1501 1246 740 Wait 3369 | . 155 101 188 14 272 628 608 . 194 298 261 253 166 231 Move 13039 | 35 315 348 434 165 1682 2472 1635 254 898 1111 1037 1170 1007 476 Hop 141 | . . 5 9 9 28 34 6 . 4 7 9 8 19 3 Pick Up 66 | . 4 5 3 2 7 9 5 . . 5 13 5 7 1 Fast Attach 63 | . 2 1 2 3 7 7 6 . 1 3 10 11 9 1 Attach 66 | . 1 5 . 2 4 16 3 . 3 8 5 6 7 6 Detach 34 | . 2 1 . 2 2 10 1 . . 5 1 1 5 4 Swap 56 | . 2 . . . 7 18 11 . 3 4 . 3 6 2 Drop 74 | . . 1 2 3 7 13 7 . 1 1 13 12 7 7 Fire . | . . . . . . . . . . . . . . . Melee 150 | . . . . . 13 27 19 2 18 18 13 19 12 9 Ram 1 | . 1 . . . . . . . . . . . . . Kick . | . . . . . . . . . . . . . . . Crush . | . . . . . . . . . . . . . . . Escape Stasis 57 | . . . . . 26 . . . . 18 . 13 . . Rewire 1 | . . . . . . . . . . . . . 1 . Trap . | . . . . . . . . . . . . . . . Miscellaneous . | . . . . . . . . . . . . . . . Route ------- -11/Scrapyard -10/Materials -9/Materials (discovered 2 exits: *Min / *Sto) -9/Mines -8/Materials -7/Factory (discovered 3 exits: *Fac / *Low x2) -6/Factory (discovered 2 exits: *Fac x2) -5/Factory (discovered 8 exits: *Fac x4 / Upp x2 / *Ext x2) -5/Extension -4/Factory -3/Research (discovered 2 exits: *Res / *Qua) -3/Quarantine -2/Research (discovered 5 exits: Acc x3 / *Tes x2) -2/Testing -1/Access Tau Ceti IV Orbit History --------- Turn | Location | Event 3 | -11/Scrapyard | Discovered new exit (range 14) 19 | -11/Scrapyard | Entered Materials 134 | -10/Materials | Discovered new exit (range 5) 300 | -10/Materials | Build established: Mutant 345 | -10/Materials | Identified exit to Materials 345 | -10/Materials | Entered another Materials area 345 | -9/Materials | Evolved 2 slots: Utility x2 345 | -9/Materials | Discovered new exit (range 8) 372 | -9/Materials | Identified exit to Storage 556 | -9/Materials | Identified exit to Mines 611 | -9/Materials | Entered Mines 611 | -9/Mines | Accompanied by 1 ally 616 | -9/Mines | Learned location of 1 exit from Lower Caves 632 | -9/Mines | Received a Rocket Launcher from a helpful Derelict 662 | -9/Mines | Met a Derelict shopkeep closing up shop 927 | -9/Mines | Met a Derelict who couldn't figure out how to use a Trap Extractor 956 | -9/Mines | Discovered new exit (range 7) 960 | -9/Mines | Received a Mining Laser from a helpful Derelict 962 | -9/Mines | Entered Materials 962 | -8/Materials | Evolved 2 slots: Propulsion x1, Utility x1 1055 | -8/Materials | Discovered new exit (range 10) 1057 | -8/Materials | Entered Factory 1057 | -7/Factory | Evolved 2 slots: Utility x2 1280 | -7/Factory | Hacking Suite fried by hacking feedback 1525 | -7/Factory | Discovered new exit (range 8) 1760 | -7/Factory | Identified exit to Lower Caves 1779 | -7/Factory | Discovered new exit (range 8) 1783 | -7/Factory | Identified exit to Factory 1874 | -7/Factory | Build established: Scout 1936 | -7/Factory | Fabricated Imp. Hacking Suite? 1975 | -7/Factory | Entered another Factory area 1975 | -6/Factory | Evolved 2 slots: Propulsion x1, Utility x1 2101 | -6/Factory | Discovered new exit (range 16) 2119 | -6/Factory | Identified exit to Factory 2278 | -6/Factory | Fabricated Adv. Sensor Array? 2311 | -6/Factory | Spotted B-75 Beast 2356 | -6/Factory | Fabricated Cloaking Device? 2381 | -6/Factory | Build established: Hacker-Scout 2647 | -6/Factory | Fabricated Cloaking Device? 2656 | -6/Factory | Lost 3 parts (1p2u) 2695 | -6/Factory | Discovered exit to Factory (range 19) 2880 | -6/Factory | Fabricated Imp. Hacking Suite? 2960 | -6/Factory | Repaired Broken Xenon Bombardment Thruster 3559 | -6/Factory | Build established: Hacker-Ninja 3582 | -6/Factory | Entered another Factory area 3582 | -5/Factory | Evolved 2 slots: Propulsion x1, Utility x1 3734 | -5/Factory | Discovered new exit (range 12) 3750 | -5/Factory | Identified exit to Extension 3971 | -5/Factory | Repaired Xenon Bombardment Thruster 4022 | -5/Factory | Repaired Lgt. Fission Core 4095 | -5/Factory | Repaired Imp. Cesium-ion Thruster 4147 | -5/Factory | Identified exit to Factory 4147 | -5/Factory | Identified exit to Upper Caves 4269 | -5/Factory | Fabricated Nuclear Pulse Array? 4613 | -5/Factory | Fabricated Adv. Hacking Suite? 4797 | -5/Factory | Spotted B-75 Beast 4822 | -5/Factory | Entered Extension 4830 | -5/Extension | Disrupted transfer network 4903 | -5/Extension | Spotted B-75 Beast 4904 | -5/Extension | Spotted B-75 Beast 4908 | -5/Extension | Discovered exit to Factory (range 3) 4908 | -5/Extension | Entered Factory 4908 | -4/Factory | Evolved 2 slots: Power x1, Propulsion x1 5275 | -4/Factory | Discovered new exit (range 20) 5411 | -4/Factory | Identified exit to Research 5412 | -4/Factory | Entered Research 5412 | -3/Research | Evolved 2 slots: Utility x2 5728 | -3/Research | Discovered new exit (range 19) 5755 | -3/Research | Spotted B-86 Titan 6070 | -3/Research | Spotted B-86 Titan 6107 | -3/Research | Discovered new exit (range 9) 6108 | -3/Research | Identified exit to Quarantine 6129 | -3/Research | Entered Quarantine 6200 | -3/Quarantine | Repaired Power Sword 6246 | -3/Quarantine | Cryocooling Duct disabled 6257 | -3/Quarantine | Found Alien Artifact 6261 | -3/Quarantine | Ambient heat levels rising (+20) 6261 | -3/Quarantine | Non-combat units ordered to evacuate 6312 | -3/Quarantine | Found Alien Reactor 6312 | -3/Quarantine | Identified Matter Drive 6316 | -3/Quarantine | Discovered new exit (range 5) 6320 | -3/Quarantine | Identified exit to Research 6327 | -3/Quarantine | Found Alien Artifact 6327 | -3/Quarantine | Identified Phase Armor 6510 | -3/Quarantine | Central database locked down 6520 | -3/Quarantine | Found Alien Artifact 6520 | -3/Quarantine | Identified Phase Redirector 6542 | -3/Quarantine | Found Alien Artifact 6542 | -3/Quarantine | Identified Hpw. Transdimensional Reconstructor 6542 | -3/Quarantine | Warped through subspace 6542 | -3/Quarantine | Spotted Fortress 6573 | -3/Quarantine | Found Alien Artifact 6573 | -3/Quarantine | Identified Dimensional Node Initializer 6573 | -3/Quarantine | Initialized slip node 6578 | -3/Quarantine | Found Alien Artifact 6664 | -3/Quarantine | Met incapacitated Sigix Warrior 6664 | -3/Quarantine | Lockdown squad dispatched 6665 | -3/Quarantine | Acquired the access code to the Sigix quarantine chamber 6665 | -3/Quarantine | Unlocked Sigix quarantine chamber 6671 | -3/Quarantine | Found Sigix Containment Pod 6674 | -3/Quarantine | Identified Transdimensional Reconstructor 6674 | -3/Quarantine | Warped through subspace to slip node 6803 | -3/Quarantine | Entered Research 6803 | -2/Research | Evolved 2 slots: Propulsion x1, Utility x1 6994 | -2/Research | Fabricated Centrium Light Armor Plating? 7017 | -2/Research | Fabricated Exp. Signal Interpreter? 7061 | -2/Research | Repaired Q-thruster 7259 | -2/Research | Discovered new exit (range 11) 7327 | -2/Research | Fabricated Field Propulsion Array? 7361 | -2/Research | Spotted B-90 Cyclops 7386 | -2/Research | Found Prototype Processor 7386 | -2/Research | Identified Exp. Melee Analysis Suite 7415 | -2/Research | Identified exit to Access 7446 | -2/Research | Discovered new exit (range 22) 7462 | -2/Research | Fabricated Exp. Signal Interpreter? 7554 | -2/Research | Identified exit to Testing 7554 | -2/Research | Entered Testing 7581 | -2/Testing | Lost 6 parts (2p2n2u) 7709 | -2/Testing | Found Prototype Processor 7709 | -2/Testing | Identified Exp. Core Analyzer 7781 | -2/Testing | Repaired Centrium Light Armor Plating 7800 | -2/Testing | Found Prototype Device 7800 | -2/Testing | Identified Exp. Transmission Jammer 7821 | -2/Testing | P-80 Master assimilated allied Director 9b 7854 | -2/Testing | Build established: Hacker-Scout 7914 | -2/Testing | Fabricated Exp. Signal Interpreter? 8094 | -2/Testing | Discovered exit to Access (range 6) 8096 | -2/Testing | Entered Access 8096 | -1/Access | Evolved 2 slots: Utility x2 8652 | -1/Access | Build established: Hacker-Assassin 8676 | -1/Access | Discovered new exit (range 5) 8677 | -1/Access | Identified exit to Surface 8678 | *** | Destroyed 0b10! Last Messages --------------- results: 08648_ Garrison Access x3 08653_ Wave Collapse Detector explodes. 08655_ Connecting with Garrison Access... >>Force(Jam) ACCESS_DOOR_JAMMED 08655_ ALERT: Suspicious activity at Garrison Access A006. Dispatching Investigation squad. 08661_ >> Machine Analyzer network decryption results: 08661_ Fabricator x4 08676_ Connecting with Terminal... >>Open(Door) Sealed Barrier opened. 08676_ The Access Shell folds into the floor. 08676_ EXIT=FOUND 08677_ EXIT=IDENTIFIED: SURFACE [Achievement: Payload Armed] [Achievement: Pacifist] [Achievement: True Flier] Map ----- +----------------------------------------------------+ | ?????????## ?#?????#???# +????????? ? ???????#?? | | ?????????## ?########### # ???????? ? ??####### | | ?????##??# ## # #???? ? ?? ???# | | ??????????# ## # #???????????????# | | ??????????# ## # #? ? ??????? ??# | | #####+#???# ## # # ? ?"?"?""""???# | | # ## # #? ???"???????? # ## | | ! # ## + #?#??##?#??#?##?# # | | ] # #? # ############???## # | | ? " # ##?? ? # # #?????# # | | ? """" # ######+##### # #?#??## # | | ?""""" / # #????## # | | ???"""""??# + #?????# # | | ???""""? ?# ###############p #?????# # | | ??"?? ? # #?##?#???#???## #??#?## # | | ?????? ??# #????????##???# ####### # | | ??????? ?# #?????##???##?# p k/ # | | ?#???+????# #??????#?#?#??############### # | | ????? ???## ##????###???#?#?###??#####??# # | | ??#???????# ####### ##########????#?????# # | | #?????????# """T""" "?"? ??????# # | | #???? ??#?# """ """ "????BB?? ?# # | | ?????#???# R "?"" BB? ??# | | ####????#?# "??"??? | | ""? ?? ??# "" ""?" | | ""?? ?????# @" """" ??? # | | """???? ??# "??? ? | | """???? ??# ""???BB ### # | | """???????# "?"??BB? ### # | | """???????# ""???? ??# ## | | """??????## g####### ###########??????###??# ## | | ""?? ?????# #????####????????#????????#??## ? | | ??????????# #???##???????##??????#?###????# ? | | ??? ??? ?## ?#??#?#???????#?????#????????## | | ??? ?????#gg?????????#????#??#?????#???##?######? | | ??????????# #???????????????????##?##?#???? ?? ? | | ??????#+??# ????????????#????#???????? ????? ? | | ? ?? ? ??? ?????????????????????????????? ? ???? | | ?????????? ????? ??????? ????? ?????????+??????? | | ??????????#+#?????????? ?????#????????? ???? ""?"" | | ??? ?? ??? ????????? ?????????#?????????????""F"" | | ?????? ? ??? ??????????????????????? ?????????"""" | | ???#???"?????"??? ???????????????????????????????? | | ??????"""???""" ??#???+?????????????????????????? | | ???????"""???""" ????????????????????????????????? | | ????????"?????"??????????????????????????????????? | | ???????????????????#?????????????????????????????? | | ?????????????????????????????????????????????????? | | ??????"""?"""????????????????????????????????????? | | ??????"""G"""????????????????????????????????????? | +----------------------------------------------------+ Best States ------------- Heat Dissipation 52 Energy Generation 39 Energy Capacity 650 Matter Stores 300 Matter Capacity 300 Sight Range 20 Robot Scan Range 16 Terrain Scan Range 24 Terrain Scan Density 210 ECM Strength 2 Jamming Range 12 Cloak Strength 2 Power Amplification 20 Armor Coverage 150 Core Shielding 40 Evasion (%) 78 Offensive Hacking 40 Defensive Hacking 14 Item Schematics ----------------- ECM Suite | -9/Materials | Scanalyzed Structural Scanner | -9/Materials | Scanalyzed Terrain Scanner | -9/Materials | Scanalyzed Imp. Sensor Array | -8/Materials | Hacked Hpw. Tractor Beam | -7/Factory | Extracted Imp. Hacking Suite | -7/Factory | Hacked Adv. Sensor Array | -6/Factory | Hacked Adv. Signal Interpreter | -6/Factory | Hacked Triangulator | -6/Factory | Hacked Cloaking Device | -6/Factory | Hacked Adv. Hacking Suite | -5/Factory | Hacked Nuclear Pulse Array | -5/Factory | Hacked Q-thruster | -4/Factory | Scanalyzed Rnf. Fission Core | -4/Factory | Extracted Hvy. Disruptor Cannon | -4/Factory | Extracted Imp. Phase Shifter | -4/Factory | Extracted Adv. Medium Treads | -4/Factory | Extracted Phase Shifter | -4/Factory | Extracted Imp. Force Field | -4/Factory | Extracted Enh. Gauss Cannon | -4/Factory | Extracted Lrn. Phase Cannon | -4/Factory | Extracted Centrium Wheel | -4/Factory | Extracted Coil Gun | -4/Factory | Extracted Imp. Plasma Cutter | -4/Factory | Extracted Imp. Shock Absorption System | -4/Factory | Extracted Imp. Corruption Screen | -4/Factory | Extracted Variable Charge Gun | -4/Factory | Extracted Hardcell Cannon | -4/Factory | Extracted Hyp. Mass Driver | -4/Factory | Extracted Imp. Thermal Shield | -4/Factory | Extracted Adv. Thermal Shield | -4/Factory | Extracted Exp. Signal Interpreter | -3/Quarantine | Hacked Centrium Light Armor Plating | -3/Quarantine | Hacked Field Propulsion Array | -3/Quarantine | Hacked Exp. Hacking Suite | -2/Testing | Hacked Robot Schematics ------------------ M-28 Smith | -7/Factory | Hacked Fabricated ------------ Imp. Hacking Suite | x1 | -7/Factory Adv. Sensor Array | x2 | -6/Factory Cloaking Device | x2 | -6/Factory Cloaking Device | x2 | -6/Factory Imp. Hacking Suite | x1 | -6/Factory Nuclear Pulse Array | x1 | -5/Factory Adv. Hacking Suite | x1 | -5/Factory Centrium Light Armor Plating | x1 | -2/Research Exp. Signal Interpreter | x1 | -2/Research Field Propulsion Array | x1 | -2/Research Exp. Signal Interpreter | x1 | -2/Research Exp. Signal Interpreter | x1 | -2/Testing Alien Tech Used ----------------- Matter Drive Phase Armor Phase Redirector High-powered Transdimensional Reconstructor Dimensional Node Initializer Transdimensional Reconstructor Achievements -------------- Nope Pacifist Payload Armed True Flier Challenges ------------ None Game ------ Seed AssemblyBombProjector Manual? 0 Play Time 02:43:22 Cumulative 143.3 hours Start 2024.10.25 @ 17:51:50 End 2024.10.25 @ 20:42:22 Sessions 1 Manual Loads 0 Difficulty Rogue Special Mode None Game No. 89 Rogue 53 Adventurer 36 Explorer 0 Win Type 3 Total 3 Types 2/0/0/1/0/0/0/0/0 Lore% 55 Gallery% 63 Achievement% 55 Wizard Run 0 Options --------- Layout 1 ASCII 0 Keyboard 0 Movement Numpad Keybinds 0 Fullscreen 1 Font 48/Smallcaps Map View 50x35 Zoom Use 0% Tactical HUD 1 Map Filters NONE Filters NONE Steam 1 RUN: 5e458437-b60b-4f70-af08-32e686d702f8